Cogmind - Beta 11 X7 @@@ ROGUE MODE // 2021.10.07 @ 22:33:08 Player: arctifire Result: Self-destructed Performance ------------- Evolutions (2) 1000 Regions Visited (5) 1000 Robots Destroyed (34) 170 Value Destroyed (1052) 1052 Prototype IDs (25) 500 Alien Tech Used (0) 0 Bonus (300) 300 TOTAL SCORE: 4022 Bonus ------- Aligned with FarCom 300 Cogmind --------- Core Integrity 387/550 Matter 289/300 Energy 160/160 System Corruption 2% Temperature Cool (0) Movement Walking (120) Location -8/Materials Parts ------- > --- POWER (1) -------- Light Nuclear Core > --- PROPULSION (3) --- Aluminum Leg Aluminum Leg Carbon-fiber Leg > --- UTILITY (4) ------ Small Storage Unit Advanced Visual Processing Unit Improved Signal Interpreter Light Armor Plating > --- WEAPON (3) ------- Shotgun > --- INVENTORY (8) ---- Light Ion Engine Aluminum Leg Latent Energy Streamer Firepult Faulty Enhanced Autogun Longsword +1 Peak State ------------ > --- POWER ------------ Light Nuclear Core > --- PROPULSION ------- Aluminum Leg Aluminum Leg Carbon-fiber Leg > --- UTILITY ---------- Small Storage Unit Advanced Visual Processing Unit Improved Signal Interpreter Light Armor Plating > --- WEAPON ----------- Shotgun Shotgun Enhanced Autogun > --- INVENTORY -------- Light Ion Engine Aluminum Leg Latent Energy Streamer Firepult Longsword +1 [Rating: 28] Favorites ----------- Power Ion Engine Engine Ion Engine Power Core Light Nuclear Core Propulsion Aluminum Leg Leg Aluminum Leg Wheel Compact Wheel Utility Small Storage Unit Device Improved Sensor Array Storage Small Storage Unit Processor Improved Signal Interpreter Protection Weapon Shielding Weapon Shotgun Energy Gun Small Laser Ballistic Gun Shotgun Build | -11 -10 -10 -10 -9 -8 ------- Run | Scr Mat Min Exi Min Mat Slots Evolved 4 | . . . . . 4 Power . | . . . . . . Propulsion 1 | . . . . . 1 Utility 2 | . . . . . 2 Weapon 1 | . . . . . 1 Parts Attached 19 | . 2 . . 4 13 Power 1 | . . . . 1 . Engine . | . . . . . . Core 1 | . . . . 1 . Reactor . | . . . . . . Propulsion 6 | . . . . 2 4 Treads . | . . . . . . Leg 5 | . . . . 2 3 Wheel 1 | . . . . . 1 Hover . | . . . . . . Flight . | . . . . . . Utility 5 | . . . . 1 4 Device 1 | . . . . . 1 Storage . | . . . . . . Processor 2 | . . . . . 2 Hackware . | . . . . . . Protection 2 | . . . . 1 1 Artifact . | . . . . . . Weapon 7 | . 2 . . . 5 Energy Gun . | . . . . . . Energy Cannon . | . . . . . . Ballistic Gun 7 | . 2 . . . 5 Ballistic Cannon . | . . . . . . Launcher . | . . . . . . Special Weapon . | . . . . . . Impact Weapon . | . . . . . . Slashing Weapon . | . . . . . . Piercing Weapon . | . . . . . . Special Melee Weapon . | . . . . . . Unidentified Prototypes 2 | . . . . . 2 Parts Lost 11 | . . . . 1 10 Power . | . . . . . . Propulsion 4 | . . . . 1 3 Utility 2 | . . . . . 2 Weapon 5 | . . . . . 5 Highest Loss Streak 5 | . . . . 1 5 Average Slot Usage (%) 88 | . 82 85 85 95 86 Engine 7 | . 14 14 14 14 . Core 4 | . . . . . 9 Leg 23 | . 28 28 28 27 19 Wheel 1 | . . . . . 2 Device 2 | . . . . . 5 Storage 11 | . 14 14 14 14 9 Processor 6 | . . . . . 12 Protection 4 | . . . . 10 2 Ballistic Gun 26 | . 21 28 28 28 24 Naked Turns . | . . . . . . Heaviest Build 22 | 12 16 16 16 17 22 Greatest Support 35 | 20 20 20 20 20 35 Greatest Overweight (x) 1 | . . . . 1 1 Average Overweight (x) . | . . . . . . Largest Inventory Capacity 8 | 8 8 8 8 8 8 Average Capacity 8 | 8 8 8 8 8 8 Most Carried 8 | 6 8 8 8 8 8 Average Carried 6 | 6 6 8 7 8 5 Final Capacity 8 | 8 8 8 8 8 8 Final Carried 8 | 6 8 8 8 8 7 Class Distribution -------------------- 56% | Mutant 36% | Skirmisher 6% | Scavenger-Mutant Dominant Class ---------------- Mutant | -10/Materials Mutant | -10/Mines Mutant | -10/Exiles Mutant | -9/Mines Skirmisher | -8/Materials Resources | -11 -10 -10 -10 -9 -8 ----------- Run | Scr Mat Min Exi Min Mat Matter Collected 929 | 200 . 38 22 183 486 Remotely . | . . . . . . Salvage Created 1191 | . . 38 . 293 860 Parts 72 | . . 7 . 24 41 Haulers Intercepted . | . . . . . . Recyclers Shooed 1 | . . . . . 1 Parts Field Recycled . | . . . . . . Retrieved Matter . | . . . . . . Parts Self-Destructed . | . . . . . . Prevented . | . . . . . . Kills | -11 -10 -10 -10 -9 -8 ------- Run | Scr Mat Min Exi Min Mat Combat Hostiles Destroyed 31 | . . 3 . 12 16 Guns 31 | . . 3 . 12 16 Classes Destroyed 9 | . . 1 . 2 6 Worker 1 | . . . . . 1 Builder 1 | . . . . . 1 Recycler 1 | . . . . . 1 Swarmer 10 | . . 3 . 7 . Grunt 10 | . . . . 4 6 Brawler 2 | . . . . 1 1 Duelist 1 | . . . . . 1 Sentry 7 | . . . . . 7 Hunter 1 | . . . . . 1 Best Kill Streak 4 | . . 3 . 4 4 Combat Bots Only 4 | . . 3 . 4 3 Max Kills in Single Turn 2 | . . 1 . 2 2 Gunslinging 1 | . . . . 1 . Exploded . | . . . . . . Melee . | . . . . . . Uniques/NPCs Destroyed . | . . . . . . Combat | -11 -10 -10 -10 -9 -8 -------- Run | Scr Mat Min Exi Min Mat Damage Taken 1402 | . . 89 . 282 1031 Core 201 | . . 14 . 24 163 Absorbed by Shields . | . . . . . . Core Remaining (%) 92 | 100 . . . 84 . Volleys Fired 68 | . . 5 . 21 42 Largest 3 | . . 2 . 2 3 Hottest 69 | . . 46 . 46 69 Shots Fired 161 | . . 10 . 42 109 Gun 161 | . . 10 . 42 109 Cannon . | . . . . . . Launcher . | . . . . . . Special . | . . . . . . Kinetic 161 | . . 10 . 42 109 Thermal . | . . . . . . Explosive . | . . . . . . Electromagnetic . | . . . . . . Robot Hit Streak 22 | . . 3 . 8 22 Robot Miss Streak 6 | . . 3 . 6 4 Penetration Max . | . . . . . . Secondary Targets 5 | . . . . 2 3 Max Gunslinging Chain 1 | . . . . 1 1 Shots Hit Robots 127 | . . 7 . 31 89 Core Hits 73 | . . 3 . 19 51 Critical Kills 1 | . . . . . 1 Critical Parts Destroyed . | . . . . . . Critical Strikes 1 | . . . . . 1 Destroy 1 | . . . . . 1 Melee Attacks . | . . . . . . Impact . | . . . . . . Slashing . | . . . . . . Piercing . | . . . . . . Sneak Attacks . | . . . . . . Combat Hostiles . | . . . . . . Follow-up Attacks . | . . . . . . Damage Inflicted 1835 | . . 89 . 459 1287 Guns 1751 | . . 89 . 459 1203 Cannons . | . . . . . . Explosions 84 | . . . . . 84 Melee . | . . . . . . Ramming . | . . . . . . Kinetic 1751 | . . 89 . 459 1203 Thermal 84 | . . . . . 84 Explosive . | . . . . . . Electromagnetic . | . . . . . . Impact . | . . . . . . Slashing . | . . . . . . Piercing . | . . . . . . Highest Corruption 2 | . . . . . 2 Average Corruption 2 | . . . . . 2 Corruption Purged . | . . . . . . Overload Shots . | . . . . . . Overflow Damage 86 | . . . . . 86 Projectiles . | . . . . . . Explosions 86 | . . . . . 86 Melee . | . . . . . . Knockbacks . | . . . . . . Impact . | . . . . . . Kinetic . | . . . . . . Secondary . | . . . . . . Self-Inflicted Damage 144 | . . . . . 144 Shots 2 | . . . . . 2 Rammed . | . . . . . . Targets Rammed . | . . . . . . Kicked . | . . . . . . Crushed . | . . . . . . Highest Temperature 72 | . . . . 4 72 Average Temperature 15 | . . . . 2 17 Received Heat Transfer 420 | . . . . 78 342 Siege Activations . | . . . . . . Robots Corrupted . | . . . . . . Combat Hostiles . | . . . . . . Parts Fried . | . . . . . . Impact Corruptions . | . . . . . . Robots Melted . | . . . . . . Combat Hostiles . | . . . . . . Parts Melted . | . . . . . . Heat Transferred 50 | . . . . . 50 Parts Sabotaged . | . . . . . . Parts Stolen . | . . . . . . Parts Stripped . | . . . . . . Power Chain Reactions . | . . . . . . Missiles Intercepted . | . . . . . . Alert | -11 -10 -10 -10 -9 -8 ------- Run | Scr Mat Min Exi Min Mat Peak Influence 271 | . . 85 . 140 271 Initial 50 | . . . . . 50 Average 106 | . . 80 . 92 125 Maximum Alert Level 1 | . . . . . 1 Low Security (%) 89 | 100 100 100 . 100 82 Level 1 10 | . . . . . 17 Level 2 . | . . . . . . Level 3 . | . . . . . . Level 4 . | . . . . . . Level 5 . | . . . . . . High Security . | . . . . . . Max Security . | . . . . . . Squads Dispatched 2 | . . . . . 2 Investigation . | . . . . . . Extermination . | . . . . . . Reinforcement . | . . . . . . Assault . | . . . . . . Garrison 2 | . . . . . 2 Intercept . | . . . . . . Construction Impeded . | . . . . . . Haulers Reinforced . | . . . . . . Active Scanning Responses . | . . . . . . Cargo Convoy Interrupts . | . . . . . . Stealth | -11 -10 -10 -10 -9 -8 --------- Run | Scr Mat Min Exi Min Mat Distress Signals 5 | . . . . . 5 Communications Jammed . | . . . . . . Distress Signals . | . . . . . . Times Spotted 44 | . . 3 . 11 30 Peak Tracking Total 9 | . . 3 . 3 9 Tactical Retreats 2 | . . . . . 2 Traps | -11 -10 -10 -10 -9 -8 ------- Run | Scr Mat Min Exi Min Mat Traps Triggered . | . . . . . . Indirectly . | . . . . . . Trap Hack Attempts . | . . . . . . Triggered . | . . . . . . Disarmed . | . . . . . . Reprogrammed . | . . . . . . Reused . | . . . . . . Traps Extracted . | . . . . . . Installed . | . . . . . . Triggered . | . . . . . . Machines | -11 -10 -10 -10 -9 -8 ---------- Run | Scr Mat Min Exi Min Mat Machines Disabled 2 | . . . . . 2 Max in Single Turn 2 | . . . . . 2 Machines Sabotaged . | . . . . . . Garrisons Compromised . | . . . . . . Overloaded Fab Kills . | . . . . . . Fab Network Shutdowns . | . . . . . . Hacking | -11 -10 -10 -10 -9 -8 --------- Run | Scr Mat Min Exi Min Mat Machines Accessed 2 | . . . 1 . 1 Terminals . | . . . . . . Fabricators . | . . . . . . Repair Stations . | . . . . . . Recycling Units . | . . . . . . Scanalyzers 1 | . . . . . 1 Garrison Access . | . . . . . . Total Hacks 4 | . . . 1 . 3 Successful 4 | . . . 1 . 3 Failed . | . . . . . . Catastrophic . | . . . . . . Database Lockouts . | . . . . . . Manual 1 | . . . 1 . . Terminals . | . . . . . . Fabricators . | . . . . . . Repair Stations . | . . . . . . Recycling Units . | . . . . . . Scanalyzers 3 | . . . . . 3 Garrison Access . | . . . . . . Terminal Hacks 1 | . . . 1 . . EX-Prototype ID Bank 1 | . . . 1 . . Fabricator Hacks . | . . . . . . Repair Station Hacks . | . . . . . . Recycling Unit Hacks . | . . . . . . Scanalyzer 3 | . . . . . 3 Insert Component 1 | . . . . . 1 Analyze 2 | . . . . . 2 Garrison Access Hacks . | . . . . . . Unauthorized Hacks . | . . . . . . Terminals . | . . . . . . Fabricators . | . . . . . . Repair Stations . | . . . . . . Recycling Units . | . . . . . . Scanalyzers . | . . . . . . Garrison Access . | . . . . . . Data Cores Recovered . | . . . . . . Used . | . . . . . . Hacking Detections 1 | . . . . . 1 Full Trace Events . | . . . . . . Feedback Events . | . . . . . . Feedback Blocked . | . . . . . . Robot Schematics Acquired . | . . . . . . Robots Built . | . . . . . . Matter . | . . . . . . Time . | . . . . . . Total Robot Build Rating . | . . . . . . Part Schematics Acquired 1 | . . . . . 1 Parts Built . | . . . . . . Matter . | . . . . . . Time . | . . . . . . Total Part Build Rating . | . . . . . . Parts Repaired . | . . . . . . Time . | . . . . . . Parts Recycled . | . . . . . . Recycled Matter . | . . . . . . Retrieved Matter . | . . . . . . Retrieved Components . | . . . . . . Parts Scanalyzed 1 | . . . . . 1 Part Schematics Acquired 1 | . . . . . 1 Parts Damaged . | . . . . . . Bothacking | -11 -10 -10 -10 -9 -8 ------------ Run | Scr Mat Min Exi Min Mat Used RIF Installer . | . . . . . . Robots Hacked . | . . . . . . Non-combat . | . . . . . . Combat . | . . . . . . Robot Hacks Applied . | . . . . . . Relay Couplers Released . | . . . . . . Robots Rewired . | . . . . . . Allies Hacked . | . . . . . . Hacks Repelled . | . . . . . . Allies | -11 -10 -10 -10 -9 -8 -------- Run | Scr Mat Min Exi Min Mat Total Allies . | . . . . . . Largest Group . | . . . . . . Highest-Rated Group . | . . . . . . Highest-Rated Ally . | . . . . . . Total Orders . | . . . . . . Ally Attacks . | . . . . . . Total Damage . | . . . . . . Kills . | . . . . . . Allies Corrupted . | . . . . . . Allies Melted . | . . . . . . Intel | -11 -10 -10 -10 -9 -8 ------- Run | Scr Mat Min Exi Min Mat Robot Analysis Total . | . . . . . . Derelict Logs Recovered 3 | . . 1 . 2 . Drone Launches . | . . . . . . Drone Recoveries . | . . . . . . Exploration | -11 -10 -10 -10 -9 -8 ------------- Run | Scr Mat Min Exi Min Mat Turns Passed 2149 | 2 65 99 365 614 1004 Spaces Moved 1325 | 2 45 71 301 404 502 Core . | . . . . . . Treads . | . . . . . . Legs 1325 | 2 45 71 301 404 502 Wheels . | . . . . . . Hover . | . . . . . . Flight . | . . . . . . Fastest Speed 120 | 120 120 120 120 120 120 Average Speed 120 | 120 120 120 120 120 120 Slowest Speed 200 | 120 120 120 120 200 200 Overloaded Moves . | . . . . . . Propulsion Burnouts . | . . . . . . Robots Hopped . | . . . . . . Cave-ins Triggered . | . . . . . . Exploration Rate (%) 33 | 2 11 19 62 63 45 Regions Visited 5 Branch Regions 3 Pre-discovered Areas 1 | . . 1 . . . Known Exits Taken . | . . . . . . Unknown Exits Taken 5 | 1 1 1 1 1 . Scrap Searched 1 | . . . . 1 . Spaces Dug . | . . . . . . Terrain Destroyed 28 | . . . . . 28 Melee . | . . . . . . Projectile . | . . . . . . AOE 28 | . . . . . 28 Terrain Rammed . | . . . . . . Walls Destroyed . | . . . . . . Machines Disabled . | . . . . . . Actions | -11 -10 -10 -10 -9 -8 --------- Run | Scr Mat Min Exi Min Mat Total 1741 | 1 58 75 307 490 810 Wait 311 | . . . . 60 251 Move 1320 | 1 44 70 300 403 502 Hop . | . . . . . . Pick Up 9 | . 6 . 3 . . Fast Attach 15 | . 2 . . 3 10 Attach 3 | . . . . . 3 Detach 1 | . . . . . 1 Swap 2 | . . . . 1 1 Drop 12 | . 6 . 4 2 . Fire 68 | . . 5 . 21 42 Melee . | . . . . . . Ram . | . . . . . . Kick . | . . . . . . Crush . | . . . . . . Escape Stasis . | . . . . . . Rewire . | . . . . . . Trap . | . . . . . . Miscellaneous . | . . . . . . Route ------- -11/Scrapyard -10/Materials -10/Mines (discovered 2 exits: [*Mat] / *Exi) -10/Exiles -9/Mines -8/Materials (discovered 1 exit: Fac) History --------- Turn | Location | Event 1 | -11/Scrapyard | Discovered new exit (range 1) 3 | -11/Scrapyard | Entered Materials 45 | -10/Materials | Discovered new exit (range 15) 68 | -10/Materials | Entered Mines 112 | -10/Mines | Discovered new exit (range 7) 116 | -10/Mines | Learned location of Recycling (-7) 159 | -10/Mines | Deemed a non-threat by the Exiles lab entrance 160 | -10/Mines | Discovered new exit (range 5) 167 | -10/Mines | Entered Exiles 205 | -10/Exiles | Met 8R-AWN 226 | -10/Exiles | Met EX-HEX 275 | -10/Exiles | Met EX-BIN 298 | -10/Exiles | Aligned with FarCom system 299 | -10/Exiles | Given EX-Vault access code 318 | -10/Exiles | Build established: Mutant 335 | -10/Exiles | Opened EX-Vault 349 | -10/Exiles | Found Firepult 352 | -10/Exiles | Found Latent Energy Streamer 357 | -10/Exiles | Found Longsword +1 384 | -10/Exiles | Warned to stay clear of 0b10 Research branches 424 | -10/Exiles | Met EX-DEC 510 | -10/Exiles | Discovered new exit (range 14) 532 | -10/Exiles | Stole three prototypes: Latent Energy Streamer, Firepult, Longsword +1 532 | -10/Exiles | Entered Mines 627 | -9/Mines | Learned location of 1 exit from Materials 712 | -9/Mines | Learned Materials stockpile data 1100 | -9/Mines | Discovered new exit (range 6) 1146 | -9/Mines | Entered Materials 1146 | -8/Materials | Evolved 4 slots: Propulsion x1, Utility x2, Weapon x1 1147 | -8/Materials | Identified exit to Factory 1308 | -8/Materials | Lost 5 parts (1n1u3w) 1575 | -8/Materials | Build established: Skirmisher 1999 | -8/Materials | Lost 3 parts (1n1u1w) 2034 | -8/Materials | Garrison activated, responded to threat 2150 | -8/Materials | Self-destructed Last Messages --------------- 02114_ Current location identified: Materials 02114_ Connecting with Scanalyzer... >>Insert(Faulty Enh. Autogun) Scanning Faulty Enh. Autogun... Ready to analyze. >>Scanalyze Scanning: Faulty Enh. Autogun... Scan incomplete, additional scanning required. >>Scanalyze Scanning: Faulty Enh. Autogun... Schematic downloaded. 02130_ C-30 ARC bursts open, deploying its payload. 02130_ G-50 Soldier unfolds itself. 02130_ G-47 Trooper unfolds itself. 02134_ Y-45 Defender emerges from the garrison. 02136_ Acquired 20 matter. 02137_ Critical hit (Burn: +37). 02138_ Acquired 8 matter. 02144_ Y-45 Defender destroyed. 02148_ Shotgun destroyed. Map ----- +----------------------------------------------------+ | ???????????# # #????# + """""""???????????? | | ???????????# # #????# # """""""???????????? | | ???????????# """ # #????# # """""""???????????? | | ???????????# """ # ######%! # """"""????????????? | | ???????????# """ + ########????????????? | | ???????????# # ##### #???????????????????? | | ???????????######## #???# #???????????????????? | | ??????????????????# #???# #???????????????????? | | ??????????????????# #???######???????????????????? | | ??????????????????# #????????????????????????????? | | ??????????????????# #????????????????????????????? | | ??????????????#####/#####????????????????????????? | | ??????????????#!*% % %= #????????????????????????? | | ??????????????#%""" """ #??#############+????????? | | ??????????????# """ """ #?? ?????????? | | ??????????????# """ """ #?? ! ??????????? | | ??????????????# #?? w ????????????? | | ??????????????# #?? ##????????????? | | ??????????????# #?? T#????????????? | | ??????????????# g #?? !*= #?????????????? | | ????????????#########/##### !* [###???????????? | | ????????????# # != = # ""????????? | | ????????????# # ! Y "+ ?????? | | ????????????# "" # gggg "%#???????????? | | ????????????# S"" + ###g####### "#???????????? | | ????????????# "" # #%@!%!* #?????????????????? | | ????????????# # g # ""[ #?????????????????? | | ????????????######## #Y"G #?????????????????? | | ??????????????????? # "" #?????????????????? | | ?????????????????? # #?????????????????? | | ????????????????? # #?????????????????? | | ????????????????######## #?????????????????? | | ???????????????????????# =/ ! #????????????????? | | ???????????????????????# =[ ##????????????????? | | ???????????????????????# #?????????????????? | | ???????????????????????+ = #?????????????????? | | ???????????????????????#########?????????????????? | | ?????????????????????????????????????????????????? | | ?????????????????????????????????????????????????? | | ?????????????????????????????????????????????????? | | ?????????????????????????????????????????????????? | | ?????????????????????????????????????????????????? | | ?????????????????????????????????????????????????? | | ?????????????????????????????????????????????????? | | ?????????????????????????????????????????????????? | | ?????????????????????????????????????????????????? | | ?????????????????????????????????????????????????? | | ?????????????????????????????????????????????????? | | ?????????????????????????????????????????????????? | | ?????????????????????????????????????????????????? | +----------------------------------------------------+ Best States ------------- Heat Dissipation 31 Energy Generation 14 Energy Capacity 250 Matter Stores 300 Matter Capacity 300 Sight Range 20 Robot Scan Range 15 Terrain Scan Density 10 Armor Coverage 150 Weapon Shielding 33 Evasion (%) 55 Item Schematics ----------------- Enh. Autogun | -8/Materials | Scanalyzed Robot Schematics ------------------ None Fabricated ------------ Nothing Alien Tech Used ----------------- None Achievements -------------- None Challenges ------------ None Game ------ Seed IntegratedCompositeSword Manual? 0 Play Time 00:13:23 Cumulative 31.3 hours Start 2021.10.07 @ 20:45:17 End 2021.10.07 @ 22:33:08 Sessions 3 Manual Loads 0 Difficulty Rogue Special Mode None Game No. 38 Rogue 7 Adventurer 25 Explorer 6 Win Type - Total 0 Types 0/0/0/0/0/0/0/0/0 Lore% 21 Gallery% 44 Achievement% 55 Wizard Run 0 Options --------- ASCII 0 Keyboard 0 Movement Arrows Keybinds 0 Fullscreen 1 Font 18/SmallcapsGlow Map View 76x50 Tactical HUD 1 Map Filters NONE Filters NONE Steam 1 RUN: 5062b6b4-b380-4c79-a1f7-9da56c43c2ae